bitfinex/quotes_BTCUSD_20251104
["timestamp","ask_amount","ask_price","bid_price","bid_amount"]
[1762246502476,0.0050201,104080.0,104070.0,0.34059999]
[1762246502714,0.0050201,104080.0,104070.0,0.19319999]
[1762246502916,0.0050201,104080.0,104070.0,0.53319999]
[1762246503292,0.19717997,104080.0,104070.0,0.34102165]
[1762246503512,0.19717997,104080.0,104070.0,0.53219999]
[1762246503836,0.19817997,104080.0,104070.0,0.34002165]
[1762246504372,0.0060201,104080.0,104070.0,0.53219999]
[1762246504578,0.001,104080.0,104070.0,1.12529999]
[1762246504758,0.001,104080.0,104070.0,1.00221591]
[1762246505382,0.1921236,104100.0,104090.0,0.19214141]
[1762246505594,0.20672928,104110.0,104090.0,0.19214141]
[1762246505797,0.19214141,104090.0,104080.0,0.19214396]
[1762246505968,0.19212295,104100.0,104080.0,0.19214396]
[1762246506221,0.19212295,104100.0,104090.0,0.19214141]
[1762246506560,0.19312295,104100.0,104090.0,0.19214141]
[1762246506671,0.001,104100.0,104090.0,0.19214141]
[1762246506871,0.19313186,104100.0,104080.0,0.33954396]
[1762246507077,0.19214141,104090.0,104080.0,0.4874]
[1762246507706,0.19214141,104090.0,104080.0,0.1474]
[1762246508617,0.19214141,104090.0,104080.0,0.1494]
[1762246509174,0.19214141,104090.0,104080.0,0.1474]
[1762246509387,0.19214141,104090.0,104080.0,0.34255987]
[1762246509784,0.19214141,104090.0,104080.0,0.1504]
[1762246510660,0.19214141,104090.0,104080.0,0.3961]
[1762246511105,0.25892141,104090.0,104080.0,0.1504]
[1762246511766,0.25892141,104090.0,104080.0,0.1484]
[1762246511967,0.35349747,104090.0,104080.0,0.1484]
[1762246512231,0.35649747,104090.0,104080.0,0.1474]
[1762246512632,0.26292141,104090.0,104080.0,0.1474]
[1762246512853,0.23214141,104090.0,104080.0,0.1474]
[1762246513060,0.26292141,104090.0,104080.0,0.1474]
[1762246513205,1.3000159,104090.0,104080.0,0.1474]
[1762246513881,0.60292141,104090.0,104080.0,0.1474]
[1762246514036,0.66312591,104090.0,104080.0,0.1474]
[1762246514697,1.3602204,104090.0,104080.0,0.1474]
[1762246515110,1.38908027,104090.0,104080.0,0.1474]
[1762246515527,0.69198578,104090.0,104080.0,0.1474]
[1762246515887,0.63178128,104090.0,104080.0,0.1474]
[1762246525530,1.32887577,104090.0,104080.0,0.1474]
[1762246526373,0.63178128,104090.0,104080.0,0.1474]
[1762246528507,1.19915463,104090.0,104080.0,0.1474]
[1762246529570,1.23533691,104090.0,104080.0,0.1474]
[1762246530423,1.23233691,104090.0,104080.0,0.1474]
[1762246530816,1.23733691,104090.0,104080.0,0.1484]
[1762246531233,1.23933691,104090.0,104080.0,0.1484]
[1762246532518,1.07145056,104090.0,104080.0,0.1484]
[1762246532941,0.67196356,104090.0,104080.0,0.1484]
[1762246533110,1.07145056,104090.0,104080.0,0.1484]
[1762246535306,0.64080155,104090.0,104080.0,0.1484]
[1762246535509,1.04028855,104090.0,104080.0,0.1484]
[1762246537633,0.64080155,104090.0,104080.0,0.1484]
[1762246537809,1.04028855,104090.0,104080.0,0.1484]
[1762246538253,0.27194168,104090.0,104080.0,0.1484]
[1762246538476,0.67142868,104090.0,104080.0,0.1484]
[1762246541141,0.67142868,104090.0,104080.0,0.001]
[1762246542099,0.7002878,104090.0,104080.0,0.001]
[1762246543352,0.24116168,104090.0,104080.0,0.001]
[1762246543595,0.27048168,104090.0,104080.0,0.001]
[1762246543792,0.66996868,104090.0,104080.0,0.001]
[1762246547842,0.27290168,104090.0,104080.0,0.001]
[1762246548052,0.67238868,104090.0,104080.0,0.001]
[1762246548810,0.70124675,104090.0,104080.0,0.001]
[1762246549629,0.24945975,104090.0,104080.0,0.001]
[1762246550337,0.70006675,104090.0,104080.0,0.001]
[1762246550538,0.66832675,104090.0,104080.0,0.001]
[1762246550728,0.70006675,104090.0,104080.0,0.001]
[1762246550920,0.66832675,104090.0,104080.0,0.001]
[1762246551121,0.70006675,104090.0,104080.0,0.001]
[1762246551603,0.19215987,104080.0,104070.0,0.16563948]
[1762246551934,0.19215987,104080.0,104070.0,0.14642165]
[1762246552593,0.19215987,104080.0,104070.0,0.35781782]
[1762246552746,0.19515987,104080.0,104070.0,0.33859999]
[1762246553945,0.19515987,104080.0,104070.0,0.14642165]
[1762246554178,0.19515987,104080.0,104070.0,0.16563948]
[1762246554380,0.19515987,104080.0,104070.0,0.35781782]
[1762246554583,0.19515987,104080.0,104070.0,0.33859999]
[1762246555411,0.19515987,104080.0,104070.0,0.14642165]
[1762246555618,0.19515987,104080.0,104070.0,0.16563948]
[1762246555993,0.19515987,104080.0,104070.0,0.14642165]
[1762246556233,0.19515987,104080.0,104070.0,0.35781782]
[1762246556444,0.19515987,104080.0,104070.0,0.33859999]
[1762246557485,0.19515987,104080.0,104070.0,0.14642165]
[1762246559569,0.003,104080.0,104070.0,0.33859999]
[1762246559778,0.003,104080.0,104070.0,0.67859999]
[1762246560009,0.003,104080.0,104070.0,0.53217834]
[1762246560425,0.001,104080.0,104070.0,0.53217834]
[1762246560752,0.001,104080.0,104070.0,0.71776062]
[1762246560979,0.002,104080.0,104070.0,0.71776062]
[1762246561180,0.001,104080.0,104070.0,0.68157834]
[1762246561388,0.19214354,104090.0,104070.0,0.68157834]
[1762246561579,0.19214354,104090.0,104070.0,0.77001198]
[1762246561915,0.19215987,104080.0,104070.0,0.57783364]
[1762246562126,0.19215987,104080.0,104070.0,0.76801198]
[1762246562421,0.19215987,104080.0,104070.0,0.67957834]
[1762246563303,0.19214354,104090.0,104070.0,0.68157834]
[1762246563625,0.19215987,104080.0,104070.0,0.68157834]
[1762246563830,0.19214354,104090.0,104070.0,0.68157834]
[1762246564240,0.001,104080.0,104070.0,0.68457834]
[1762246564845,0.19214354,104090.0,104080.0,0.19215987]
[1762246565934,0.22211785,104100.0,104080.0,0.58525987]
[1762246565935,0.00501845,104100.0,104080.0,0.58525987]
[1762246566117,0.00501845,104100.0,104080.0,0.53955987]
[1762246566118,0.19212295,104100.0,104080.0,0.53955987]
[1762246566282,0.19212295,104100.0,104090.0,0.21135555]
[1762246566487,0.19212295,104100.0,104090.0,0.19214141]
[1762246566928,0.19212295,104100.0,104090.0,0.33954141]
[1762246567549,0.19412295,104100.0,104090.0,0.33954141]
[1762246567952,0.19512295,104100.0,104090.0,0.33954141]
[1762246568366,0.19212295,104100.0,104090.0,0.33954141]
[1762246569561,0.001,104100.0,104090.0,0.34254141]
[1762246569761,0.19312295,104100.0,104090.0,0.34254141]
[1762246570724,0.19312295,104100.0,104090.0,0.1524]
[1762246572149,0.19312295,104100.0,104090.0,0.34454141]
[1762246572369,0.19312295,104100.0,104090.0,0.1524]
[1762246573143,0.19814129,104100.0,104090.0,0.1524]
[1762246574424,0.19814129,104100.0,104090.0,0.34454141]
[1762246574841,0.00601834,104100.0,104090.0,0.34454141]
[1762246575061,0.20171079,104110.0,104100.0,0.14138166]
[1762246575271,0.20171079,104110.0,104100.0,0.33350461]
[1762246575492,0.20171079,104110.0,104100.0,0.14138166]
[1762246575666,0.20171079,104110.0,104100.0,0.33350461]
[1762246575864,0.20171079,104110.0,104100.0,0.14138166]
[1762246576211,0.20180428,104110.0,104100.0,0.14138166]
[1762246576419,0.20180428,104110.0,104100.0,0.33350461]
[1762246577616,0.19219799,104110.0,104100.0,0.33350461]
[1762246580281,0.19219799,104110.0,104100.0,0.57920461]
[1762246581042,0.19219799,104110.0,104100.0,0.38708166]
[1762246581453,0.19219799,104110.0,104100.0,0.57920461]
[1762246581874,0.19219799,104110.0,104100.0,0.58120461]
[1762246582083,0.19219799,104110.0,104100.0,0.38908166]
[1762246582475,0.19319799,104110.0,104100.0,0.39208166]
[1762246582655,0.19319799,104110.0,104100.0,0.58420461]
[1762246582854,0.00109349,104110.0,104100.0,0.58420461]
[1762246583057,0.00109349,104110.0,104100.0,0.67850461]
[1762246583370,0.00109349,104110.0,104100.0,0.53712295]
[1762246584460,0.00109349,104110.0,104100.0,0.53512295]
[1762246584668,9.349e-05,104110.0,104100.0,0.53212295]
[1762246584868,0.00109349,104110.0,104100.0,0.53912295]
[1762246585691,0.19216959,104140.0,104110.0,0.19208678]
[1762246585923,0.19206778,104130.0,104110.0,0.19208678]
[1762246587190,0.19206778,104130.0,104120.0,0.21129465]
[1762246587369,0.19206778,104130.0,104120.0,0.19208605]
[1762246588037,0.19208605,104120.0,104110.0,0.7321045]
[1762246588250,0.19206778,104130.0,104110.0,1.11918616]
[1762246588473,0.20186554,104140.0,104110.0,1.11918616]
[1762246588689,0.20186554,104140.0,104120.0,0.21129465]
[1762246588910,0.1920676,104130.0,104120.0,0.21129465]
[1762246589120,0.1920676,104130.0,104120.0,0.19208605]
[1762246589605,0.19208605,104120.0,104110.0,1.12879138]
[1762246589827,0.19208605,104120.0,104110.0,0.92708166]
[1762246590051,0.19208605,104120.0,104110.0,0.58708166]
[1762246590689,0.19208605,104120.0,104110.0,0.77918616]
[1762246590913,0.1920676,104130.0,104110.0,0.77918616]
[1762246591077,0.1920676,104130.0,104120.0,0.0192086]
[1762246591643,0.1920676,104130.0,104120.0,0.21129465]
[1762246591834,0.1920676,104130.0,104120.0,0.19208605]
[1762246592040,0.1920676,104130.0,104110.0,0.78218616]
[1762246592239,0.1920676,104130.0,104120.0,0.21129465]
[1762246592488,0.1920676,104130.0,104120.0,0.19208605]
[1762246592690,0.20186554,104140.0,104120.0,0.33346771]
[1762246593087,0.1920676,104130.0,104120.0,0.33346771]
[1762246593282,0.1920676,104130.0,104120.0,0.14138166]
[1762246593487,0.1920676,104130.0,104120.0,0.16059026]
[1762246593850,0.1920676,104130.0,104120.0,0.35267631]
[1762246594051,0.1920676,104130.0,104120.0,0.33346771]
[1762246594546,0.20486554,104140.0,104120.0,0.33346771]
[1762246594696,0.1920676,104130.0,104120.0,0.33346771]
[1762246598143,0.20186554,104140.0,104120.0,0.33346771]
[1762246598756,9.35e-05,104140.0,104130.0,0.21127436]
[1762246598972,0.19214266,104140.0,104130.0,0.1920676]
[1762246599140,0.19214266,104140.0,104130.0,0.33344926]
[1762246599798,0.19214266,104140.0,104130.0,0.1920676]
[1762246599799,0.0020935,104140.0,104130.0,0.1920676]
[1762246599921,0.19414266,104140.0,104130.0,0.1920676]
[1762246600332,0.19514266,104140.0,104130.0,0.1920676]
[1762246600538,0.00234541,104160.0,104130.0,0.5320676]
[1762246600770,0.00239406,104160.0,104140.0,0.39203333]
[1762246600994,0.19440634,104160.0,104150.0,0.01920307]
[1762246601442,0.19440634,104160.0,104140.0,0.54956904]
[1762246601658,0.19203072,104150.0,104140.0,0.74161693]
[1762246602313,0.19203072,104150.0,104140.0,0.54]
[1762246602521,0.19203072,104150.0,104140.0,0.73204916]
[1762246602739,0.19203072,104150.0,104140.0,0.54]
[1762246603376,0.19203072,104150.0,104140.0,0.73304916]
[1762246603800,0.19203072,104150.0,104140.0,0.73604916]
[1762246604009,0.19440634,104160.0,104140.0,0.73604916]
[1762246604688,0.19440634,104160.0,104140.0,0.73504916]
[1762246604905,0.00239406,104160.0,104150.0,0.19203072]
[1762246605105,0.19440634,104160.0,104150.0,0.19203072]
[1762246606393,0.19440634,104160.0,104140.0,0.73204916]
[1762246606818,0.19440634,104160.0,104140.0,0.541]
[1762246607081,0.19203072,104150.0,104140.0,0.53304916]
[1762246607302,0.19203072,104150.0,104140.0,0.341]
[1762246607951,0.19203072,104150.0,104140.0,0.34]
[1762246608169,0.19203072,104150.0,104140.0,0.53504916]
[1762246608611,0.19203072,104150.0,104140.0,0.53604916]
[1762246608839,0.19440634,104160.0,104150.0,0.19203072]
[1762246609062,0.00239406,104160.0,104150.0,0.19203072]
[1762246609279,0.19440634,104160.0,104150.0,0.19203072]
[1762246609515,0.00239406,104160.0,104150.0,0.19203072]
[1762246609711,0.19440634,104160.0,104150.0,0.19203072]
[1762246610137,0.19440634,104160.0,104150.0,0.19303072]
[1762246610355,0.00239406,104160.0,104150.0,0.39303072]
[1762246610562,0.00239406,104160.0,104150.0,0.73303072]
[1762246612496,0.19440634,104160.0,104150.0,0.541]
[1762246612697,0.00239406,104160.0,104150.0,0.73303072]
[1762246612897,0.19440634,104160.0,104150.0,0.341]
[1762246613929,0.19440634,104160.0,104150.0,0.001]
[1762246618388,0.19440634,104160.0,104150.0,0.19303072]
[1762246618568,0.19440634,104160.0,104150.0,0.001]
[1762246619963,0.22823634,104160.0,104150.0,0.001]
[1762246620184,0.25703634,104160.0,104150.0,0.001]
[1762246620360,0.2858728,104160.0,104150.0,0.001]
[1762246620601,0.2908891,104160.0,104150.0,0.001]
[1762246620791,0.1920676,104130.0,104120.0,0.26888892]
[1762246620993,0.1920676,104130.0,104120.0,0.46097497]
[1762246621566,0.1920676,104130.0,104120.0,0.60888892]
[1762246622006,0.1920676,104130.0,104120.0,0.80097497]
[1762246622241,0.1920676,104130.0,104120.0,0.80197497]
[1762246622472,0.19206518,104140.0,104120.0,0.80197497]
[1762246622689,0.1920676,104130.0,104120.0,0.80197497]
[1762246622900,0.1920676,104130.0,104120.0,0.87535424]
[1762246623118,0.1920676,104130.0,104120.0,0.87835424]
[1762246623331,0.1920676,104130.0,104120.0,0.41188892]
[1762246623571,0.1920676,104130.0,104120.0,0.343]
[1762246624416,0.1920676,104130.0,104120.0,0.344]
[1762246624616,0.1920676,104130.0,104120.0,0.53608605]
[1762246625036,0.1920676,104130.0,104120.0,0.344]
[1762246625435,0.1920676,104130.0,104120.0,0.41288892]
[1762246625677,0.1920676,104130.0,104120.0,0.07288892]
[1762246626498,0.1920676,104130.0,104120.0,0.26497497]
[1762246626644,0.1920676,104130.0,104120.0,0.07288892]
[1762246629484,0.2258976,104130.0,104120.0,0.07288892]
[1762246629701,0.2546976,104130.0,104120.0,0.004]
[1762246629959,0.25474096,104130.0,104120.0,0.004]
[1762246631292,0.2543424,104130.0,104120.0,0.004]
[1762246633360,0.2350524,104130.0,104120.0,0.004]
[1762246634368,0.2205124,104130.0,104120.0,0.004]
[1762246634779,0.2358224,104130.0,104120.0,0.004]
[1762246635610,0.2205124,104130.0,104120.0,0.004]
[1762246636003,0.02884336,104130.0,104120.0,0.19608605]
[1762246636225,0.1920676,104130.0,104120.0,0.26497497]
[1762246636421,0.19206518,104140.0,104120.0,0.26497497]
[1762246636623,0.1920676,104130.0,104120.0,0.26497497]
[1762246636886,0.19206518,104140.0,104120.0,0.26497497]
[1762246637396,0.19206518,104140.0,104120.0,0.26197497]
[1762246637598,0.02883945,104150.0,104140.0,0.19204916]
[1762246637801,0.19440634,104160.0,104140.0,0.19204916]
[1762246638019,0.19440634,104160.0,104140.0,0.26093808]
[1762246639067,0.19440634,104160.0,104140.0,0.26393808]
[1762246639478,0.19203072,104150.0,104140.0,0.07188892]
[1762246639688,0.19203072,104150.0,104140.0,0.003]
[1762246640503,0.19203072,104150.0,104140.0,0.26093808]
[1762246641130,0.19204916,104140.0,104130.0,0.6105599]
[1762246641331,0.19204916,104140.0,104130.0,0.40888892]
[1762246641528,0.19204916,104140.0,104130.0,0.60095652]
[1762246642378,0.19204916,104140.0,104130.0,0.60395652]
[1762246643190,0.19203072,104150.0,104140.0,0.19204916]
[1762246643600,0.20400695,104160.0,104140.0,0.26093808]
[1762246643962,0.20400695,104160.0,104150.0,0.19203072]
[1762246644168,0.20400695,104160.0,104150.0,0.01920307]
[1762246644587,0.20400695,104160.0,104150.0,0.21123379]
[1762246644797,0.20400695,104160.0,104150.0,0.19203072]
[1762246645244,0.00339406,104160.0,104150.0,0.19203072]
[1762246645403,0.00339406,104160.0,104150.0,0.53203072]
[1762246645604,0.00339406,104160.0,104150.0,0.60091964]
[1762246646409,0.19440634,104160.0,104150.0,0.60091964]
[1762246646780,0.00239406,104160.0,104150.0,0.60091964]
[1762246646965,0.00239406,104160.0,104150.0,0.61242341]
[1762246647806,0.00239406,104160.0,104150.0,0.60291964]
[1762246648723,0.00239406,104160.0,104150.0,0.61264679]
[1762246648923,0.00239406,104160.0,104150.0,0.60291964]
[1762246650434,0.00239406,104160.0,104150.0,0.63910192]
[1762246650637,0.00239406,104160.0,104150.0,0.83910192]
[1762246651476,0.00239406,104160.0,104150.0,0.84884931]
[1762246654375,0.00239406,104160.0,104150.0,0.99624931]
[1762246656281,0.19440634,104160.0,104150.0,0.95031964]
[1762246656487,0.19440634,104160.0,104150.0,0.88143072]
[1762246656702,0.00239406,104160.0,104150.0,0.88143072]
[1762246656913,0.19440634,104160.0,104150.0,0.88143072]
[1762246657560,0.19440634,104160.0,104150.0,0.6894]
[1762246657773,0.19440634,104160.0,104150.0,0.88143072]
[1762246658455,0.19440634,104160.0,104150.0,0.6894]
[1762246659102,0.19440634,104160.0,104150.0,0.3494]
[1762246661324,0.19440634,104160.0,104150.0,0.54143072]
[1762246661948,0.19440634,104160.0,104150.0,0.3494]
[1762246662154,0.19440634,104160.0,104150.0,0.54143072]
[1762246662353,0.19440634,104160.0,104150.0,0.3494]
[1762246662973,0.19440634,104160.0,104150.0,0.54143072]
[1762246663181,0.19440634,104160.0,104150.0,0.3494]
[1762246663411,0.19440634,104160.0,104150.0,0.54143072]
[1762246663794,0.19440634,104160.0,104150.0,0.61031964]
[1762246665059,0.00239406,104160.0,104150.0,0.61031964]
[1762246665263,0.19440634,104160.0,104150.0,0.61031964]
[1762246666716,0.19440634,104160.0,104150.0,0.41828892]
[1762246666950,0.19440634,104160.0,104150.0,0.61031964]
[1762246667195,0.19440634,104160.0,104150.0,0.41828892]
[1762246667825,0.19440634,104160.0,104150.0,0.61031964]
[1762246668003,0.19440634,104160.0,104150.0,0.41828892]
[1762246668225,0.19440634,104160.0,104150.0,0.61031964]
[1762246668628,0.19440634,104160.0,104150.0,0.41828892]
[1762246671181,0.20786634,104160.0,104150.0,0.41828892]
[1762246671614,0.19440634,104160.0,104150.0,0.61031964]
[1762246671833,0.19440634,104160.0,104150.0,0.46291964]
[1762246672021,0.19201228,104160.0,104150.0,0.39403072]
[1762246674175,0.20545444,104170.0,104150.0,0.39403072]
[1762246674443,0.19248098,104170.0,104150.0,0.39403072]
[1762246674987,0.19248098,104170.0,104150.0,0.39203072]
[1762246675377,0.19348098,104170.0,104150.0,0.39203072]
[1762246675600,0.19201228,104160.0,104150.0,0.39203072]
[1762246676257,0.20694098,104170.0,104150.0,0.39203072]
[1762246676740,0.20594098,104170.0,104150.0,0.39203072]
[1762246677372,0.19248098,104170.0,104160.0,0.19201228]
[1762246678147,0.00048654,104170.0,104160.0,0.20158243]
[1762246678376,0.19248039,104170.0,104160.0,0.20158243]
[1762246678566,0.19348039,104170.0,104160.0,0.20158243]
[1762246680318,0.00148654,104170.0,104160.0,0.20158243]
[1762246681839,0.00148654,104170.0,104160.0,0.27047135]
[1762246682473,0.19348039,104170.0,104160.0,0.27047135]
[1762246683124,0.00148654,104170.0,104160.0,0.27047135]
[1762246683518,0.00148654,104170.0,104160.0,0.41787135]
[1762246684427,0.00148654,104170.0,104160.0,0.67376739]
[1762246685052,0.00148654,104170.0,104160.0,0.87376739]
[1762246685262,0.00148654,104170.0,104160.0,0.81070478]
[1762246685498,0.00048654,104170.0,104160.0,0.81070478]
[1762246685923,0.00048654,104170.0,104160.0,0.81370478]
[1762246686135,0.00048654,104170.0,104160.0,0.88727187]
[1762246687405,0.00148654,104170.0,104160.0,0.89327187]
[1762246689450,0.00148654,104170.0,104160.0,1.04067187]
[1762246690094,0.00148654,104170.0,104160.0,0.01857015]
[1762246690095,0.20694039,104170.0,104160.0,0.01857015]
[1762246690520,0.19348039,104170.0,104160.0,0.01857015]
[1762246690749,0.19348039,104170.0,104160.0,0.21058243]
[1762246690957,0.19248039,104170.0,104160.0,0.20458243]
[1762246691179,0.19248039,104170.0,104160.0,0.27270478]
[1762246691599,0.19248039,104170.0,104160.0,0.01157015]
[1762246692473,0.19248039,104170.0,104160.0,0.0806925]
[1762246692683,0.19248039,104170.0,104160.0,0.01157015]
[1762246693100,0.19248039,104170.0,104160.0,0.20358243]
[1762246694366,0.00048654,104170.0,104160.0,0.20358243]
[1762246694586,0.19248039,104170.0,104160.0,0.27270478]
[1762246694814,0.19248039,104170.0,104160.0,0.0806925]
[1762246695028,0.19248039,104170.0,104160.0,0.01157015]
[1762246696501,0.19248039,104170.0,104160.0,0.0806925]
[1762246697940,0.19248039,104170.0,104160.0,0.27270478]
[1762246698763,0.19248039,104170.0,104160.0,0.0806925]
[1762246700053,0.19248039,104170.0,104160.0,0.27270478]
[1762246701049,0.00048654,104170.0,104160.0,0.27270478]
[1762246702721,0.00048654,104170.0,104160.0,0.61270478]
[1762246702925,0.00048654,104170.0,104160.0,0.62227382]
[1762246704294,0.00048654,104170.0,104160.0,0.69393999]
[1762246704776,0.00048654,104170.0,104160.0,0.66099992]
[1762246704951,1.393e-05,104170.0,104160.0,0.66099992]
[1762246706532,1.393e-05,104170.0,104160.0,0.66199992]
[1762246706740,1.393e-05,104170.0,104160.0,0.74843356]
[1762246707118,1.393e-05,104170.0,104160.0,0.75443356]
[1762246707731,1.393e-05,104170.0,104160.0,0.73529437]
[1762246711461,1.393e-05,104170.0,104160.0,0.81418586]
[1762246711873,1.393e-05,104170.0,104160.0,0.72775222]
[1762246712024,0.00134207,104190.0,104180.0,0.7681577]
[1762246712228,0.00134207,104190.0,104180.0,0.85637546]
[1762246712629,0.00134207,104190.0,104180.0,0.78729689]
[1762246713031,0.19329907,104190.0,104180.0,0.78729689]
[1762246713236,0.19329907,104190.0,104180.0,0.75311461]
[1762246714062,0.19329907,104190.0,104180.0,0.01157015]
[1762246716515,0.20597907,104190.0,104180.0,0.01157015]
[1762246718329,0.22296907,104190.0,104180.0,0.01157015]
[1762246719623,0.22296907,104190.0,104180.0,0.00957015]
[1762246720240,0.22396907,104190.0,104180.0,0.00957015]
[1762246720665,0.25172907,104190.0,104180.0,0.00957015]
[1762246722441,0.65008042,104190.0,104180.0,0.00957015]
[1762246722632,0.65509512,104190.0,104180.0,0.00957015]
[1762246722851,0.68392615,104190.0,104180.0,0.00957015]
[1762246723819,0.68392615,104190.0,104180.0,0.0275591]
[1762246724614,1.02392615,104190.0,104180.0,0.0275591]
[1762246724839,1.02292615,104190.0,104180.0,0.0275591]
[1762246725053,1.02592615,104190.0,104180.0,0.00957015]
[1762246725487,1.03092615,104190.0,104180.0,0.00957015]
[1762246726838,1.02092615,104190.0,104180.0,0.00957015]
[1762246729555,1.02092615,104190.0,104180.0,0.00143552]
[1762246732293,1.04869543,104190.0,104180.0,0.00143552]
[1762246732495,0.19201228,104160.0,104150.0,0.06950088]
[1762246732704,0.22247228,104160.0,104150.0,0.00042231]
[1762246732903,0.24798228,104160.0,104150.0,0.00042231]
[1762246733114,0.27681949,104160.0,104150.0,0.00042231]
[1762246733326,0.67517084,104160.0,104150.0,0.00042231]
[1762246733999,1.02492707,104160.0,104150.0,0.00042231]
[1762246734397,1.42327842,104160.0,104150.0,0.00142231]
[1762246734602,1.02492707,104160.0,104150.0,1e-08]
[1762246734804,1.42327842,104160.0,104150.0,1e-08]
[1762246735022,1.55403676,104160.0,104150.0,1e-08]
[1762246735228,0.1920676,104130.0,104120.0,0.06907857]
[1762246735425,0.2225276,104130.0,104120.0,0.06956511]
[1762246735843,0.2225276,104130.0,104120.0,0.07122862]
[1762246735844,0.25137096,104130.0,104120.0,0.07122862]
[1762246736629,0.27688096,104130.0,104120.0,0.00215005]
[1762246736831,0.27688096,104130.0,104120.0,0.07122862]
[1762246737377,0.27688096,104130.0,104120.0,0.00315005]
[1762246738705,0.3649357,104130.0,104120.0,0.00315005]
[1762246739645,0.27688096,104130.0,104120.0,0.00315005]
[1762246740132,0.67523231,104130.0,104120.0,0.00315005]
[1762246740669,1.01523231,104130.0,104120.0,0.00315005]
[1762246741729,1.01723231,104130.0,104120.0,0.00215005]
[1762246741931,1.01823231,104130.0,104120.0,0.00215005]
[1762246742312,1.11280837,104130.0,104120.0,0.00215005]
[1762246743284,1.01823231,104130.0,104120.0,0.00215005]
[1762246743503,0.61988096,104130.0,104120.0,0.00215005]
[1762246746324,0.27988096,104130.0,104120.0,0.00215005]
[1762246746541,0.2083176,104130.0,104120.0,0.00215005]
[1762246747244,0.2235276,104130.0,104120.0,0.00215005]
[1762246747438,0.2225276,104130.0,104120.0,0.00215005]
[1762246747665,0.2225276,104130.0,104120.0,0.00315005]
[1762246748082,0.2480376,104130.0,104120.0,0.00315005]
[1762246748291,0.2225276,104130.0,104120.0,0.1952361]
[1762246749106,0.19206505,104140.0,104120.0,0.3952361]
[1762246749278,0.1920676,104130.0,104120.0,0.20148654]
[1762246749480,0.1920676,104130.0,104120.0,0.00148654]
[1762246749668,0.2053176,104130.0,104120.0,0.00148654]
[1762246749866,0.2053176,104130.0,104120.0,0.00048654]
[1762246750406,0.23382505,104140.0,104120.0,0.19257259]
[1762246750602,0.20531505,104140.0,104120.0,0.19257259]
[1762246750759,0.1920676,104130.0,104120.0,0.19357259]
[1762246750965,0.19558121,104140.0,104120.0,0.19357259]
[1762246751283,0.1920676,104130.0,104120.0,0.19257259]
[1762246751494,0.1920676,104130.0,104120.0,0.00048654]
[1762246752069,0.1920676,104130.0,104120.0,0.19257259]
[1762246753042,0.1920676,104130.0,104120.0,0.00048654]
[1762246753219,0.1920676,104130.0,104120.0,0.00148654]
[1762246753625,0.2480376,104130.0,104120.0,0.00148654]
[1762246754210,0.2225276,104130.0,104120.0,0.00148654]
[1762246755250,0.1920676,104130.0,104120.0,0.19357259]
[1762246755651,0.1920676,104130.0,104120.0,0.1952361]
[1762246756264,0.1920676,104130.0,104120.0,0.00315005]
[1762246756532,0.1920676,104130.0,104120.0,0.1952361]
[1762246756709,0.1920676,104130.0,104120.0,0.00315005]
[1762246757068,0.1920676,104130.0,104120.0,0.00215005]
[1762246757206,0.2224376,104130.0,104120.0,0.00215005]
[1762246757411,0.2224376,104130.0,104120.0,0.00415005]
[1762246757785,0.2048076,104130.0,104120.0,0.00615005]
[1762246758198,0.1920676,104130.0,104120.0,0.1982361]
[1762246758400,0.1920676,104130.0,104120.0,0.00615005]
[1762246760868,0.2495076,104130.0,104120.0,0.00615005]
[1762246761219,0.2224376,104130.0,104120.0,0.1982361]
[1762246761418,0.2048076,104130.0,104120.0,0.1982361]
[1762246762225,0.2048076,104130.0,104120.0,0.00615005]
[1762246762566,0.2048076,104130.0,104120.0,0.1982361]
[1762246763190,0.1920676,104130.0,104120.0,0.1982361]
[1762246763648,0.19204916,104140.0,104120.0,0.1982361]
[1762246763859,0.19204916,104140.0,104120.0,0.19657259]
[1762246764403,0.1920676,104130.0,104120.0,0.19657259]
[1762246764606,0.19204916,104140.0,104120.0,0.19657259]
[1762246765018,0.19204916,104140.0,104130.0,0.1920676]
[1762246766452,0.19204916,104140.0,104120.0,0.19257259]
[1762246767292,0.19204916,104140.0,104130.0,0.1920676]
[1762246768522,0.19204916,104140.0,104120.0,0.39257259]
[1762246768925,0.20478964,104140.0,104120.0,0.39257259]
[1762246769165,0.20478964,104140.0,104130.0,0.00142304]
[1762246769340,0.20478964,104140.0,104130.0,0.00342304]
[1762246769568,0.19204964,104140.0,104130.0,0.19349064]
[1762246769752,0.19304916,104140.0,104130.0,0.19849064]
[1762246769955,0.001,104140.0,104130.0,0.19849064]
[1762246770171,0.21491296,104150.0,104130.0,0.19349064]
[1762246770376,0.21992923,104150.0,104130.0,0.1920676]
[1762246770576,0.21992923,104150.0,104140.0,0.00118262]
[1762246771138,0.23728923,104150.0,104140.0,0.00118262]
[1762246773232,0.23410043,104160.0,104140.0,0.02038753]
[1762246773392,0.22085043,104160.0,104140.0,0.19204916]
[1762246773596,0.19201228,104160.0,104140.0,0.19204916]
[1762246773815,0.19203072,104150.0,104140.0,0.19204916]
[1762246773990,0.19203072,104150.0,104130.0,0.20167098]
[1762246774530,0.19204916,104140.0,104130.0,0.20167098]
[1762246774735,0.01446,104160.0,104130.0,0.20167098]
[1762246774931,0.19301228,104160.0,104140.0,0.41125407]
[1762246775092,0.19401228,104160.0,104140.0,0.41125407]
[1762246775294,0.19401228,104160.0,104140.0,0.75125407]
[1762246775499,0.19201228,104160.0,104140.0,0.73204853]
[1762246775902,0.19203072,104150.0,104140.0,0.34]
[1762246776915,0.19095084,104150.0,104140.0,0.53204916]
[1762246777153,0.19095084,104150.0,104140.0,0.34]
[1762246777565,0.19095084,104150.0,104140.0,0.341]
[1762246777762,0.19095084,104150.0,104140.0,0.343]
[1762246777961,0.19095084,104150.0,104140.0,0.53404916]
[1762246778144,0.19205379,104140.0,104130.0,0.1920676]
[1762246778344,0.19205379,104140.0,104120.0,0.47125546]
[1762246778522,0.19205379,104140.0,104130.0,0.1920676]
[1762246778965,0.19205379,104140.0,104120.0,0.47125546]
[1762246779406,0.19305379,104140.0,104130.0,0.00842304]
[1762246779987,0.001,104140.0,104130.0,0.20049064]
[1762246780192,0.00077032,104140.0,104130.0,0.20049064]
[1762246780394,0.00077032,104140.0,104130.0,0.34789064]
[1762246780615,0.20441084,104150.0,104130.0,0.34289064]
[1762246780761,0.19204916,104140.0,104130.0,0.3414676]
[1762246781135,0.19304916,104140.0,104130.0,0.3414676]
[1762246781475,0.19204916,104140.0,104130.0,0.3414676]
[1762246781940,0.19204916,104140.0,104130.0,0.1514]
[1762246782331,0.19204916,104140.0,104130.0,0.1494]
[1762246782536,0.19304916,104140.0,104130.0,0.1544]
[1762246782732,0.19304916,104140.0,104130.0,0.3464676]
[1762246782943,0.001,104140.0,104130.0,0.3464676]
[1762246783715,0.19304916,104140.0,104130.0,0.3464676]